[Event "FRA-ch Youth 2017"]
[Site "Belfort"]
[Date "2017.04.23"]
[Round "9"]
[White "Attard, Leopold"]
[Black "Lux, Hugo de Melo"]
[Result "1-0"]
[ECO "A46"]
[WhiteElo "2090"]
[BlackElo "2089"]
[Annotator "NA RC"]
[PlyCount "127"]
[EventDate "2017.??.??"]
[EventCountry "FRA"]
[SourceTitle "playchess.com"]
[Source "ChessBase"]
[SourceQuality "1"]
[TimeControl "5400+30"]

{[%evp 8,127,-6,-3,12,9,32767,32767,55,18,44,37,47,32767,91,101,100,96,91,36,56,32767,32767,32767,32767,32767,101,135,32767,231,285,307,356,383,395,303,293,166,32767,161,158,32767,56,59,70,71,91,83,79,87,94,100,90,109,135,32767,32767,32767,198,189,192,174,203,175,32767,32767,233,227,32767,32767,277,32767,32767,321,321,32767,356,357,32767,316,32767,32767,32767,32767,32767,389,32767,32767,32767,32767,286,298,32767,369,356,403,32767,371,395,379,513,324,347,316,387,447,32767,32767,32767,7108,5185,32767,32767,29982,29981,32767,29984,29986,29985,29988,29989,29989]} 1. d4 {[%emt 0:00:00]} Nf6 {[%emt 0:00:08]} 2. Nf3 {[%emt 0:00:00]} e6 {[%emt 0:00:23]} 3. c4 {[%emt 0:00:00]} c5 {[%emt 0:00:10]} 4. g3 {[%emt 0:00:00]} cxd4 {[%emt 0:04:48]} 5. Nxd4 {[%emt 0:00:04]} d5 {[%emt 0:02:58]} 6. Bg2 {[%emt 0:00:40]} e5 {[%emt 0:07:00]} 7. Nf3 {[%emt 0:00:13]} e4 {[%emt 0:01:51] E01: Catalan: Early deviations} (7... d4 8. O-O Nc6 9. e3 Be7 10. exd4 exd4 11. Bf4 Be6 12. Nbd2 O-O 13. Ne5 Rc8 14. Re1 Qb6 15. Qb3 Rfd8 16. Rad1 h6 17. h3 Bd6 18. Ndf3 Nxe5 19. Bxe5 Qxb3 20. axb3 {½-½ (71) Shomoev,A (2543)-Short,N (2683) Bangkok 2017}) 8. Nd4 {[%emt 0:03:55]} dxc4 {[%emt 0:02:40]} 9. O-O {[%emt 0:00:49]} Bc5 {[%emt 0:07:39] LiveBook: 7 Games} 10. Nb5 {[%emt 0:05:01]} Qxd1 $146 {[%emt 0:14:19]} (10... Qb6 $1 $15 {stays ahead.} 11. N5c3 (11. N5a3 e3 12. Bxe3 Bxe3 13. Nxc4 Bxf2+ 14. Rxf2 Qc7 15. Nd6+ Ke7 16. Nxc8+ Rxc8 17. Nc3 Nbd7 18. Qb3 Rab8 19. Rd1 Qc4 20. Nd5+ Kf8 21. Nxf6 Nxf6 22. Rd8+ {1-0 (22) Rotstein,A (2505)-Bosiocic,M (2578) Austria 2009}) 11... e3 12. fxe3 Bxe3+ 13. Bxe3 Qxe3+ 14. Kh1 O-O) 11. Rxd1 {[%emt 0:00:54]} Na6 {[%emt 0:03:21]} 12. N1c3 {[%emt 0:07:15]} Bd7 {[%emt 0:04:38]} 13. Nd4 {[%emt 0:09:19]} ({Better is} 13. Bg5 $16) 13... Rd8 {[%emt 0:11:55]} 14. Bg5 {[%emt 0:10:35]} Bc8 {[%emt 0:07:50]} 15. Ndb5 {[%emt 0:04:01]} Rxd1+ {[%emt 0:02:45]} 16. Rxd1 {[%emt 0:00:09]} e3 {[%emt 0:02:05]} 17. Bxe3 {[%emt 0:05:58]} O-O {[%emt 0:03:23]} 18. Nxa7 {[%emt 0:06:56]} Bxe3 {[%emt 0:05:31]} 19. Nxc8 {[%emt 0:03:04]} ({Less strong is} 19. fxe3 Nc5 20. Nxc8 Rxc8 $16) 19... Bc5 {[%emt 0:00:29]} 20. Bxb7 {[%emt 0:00:23]} Nc7 {[%emt 0:00:14]} 21. Nd6 {[%emt 0:01:04]} Rb8 {[%emt 0:01:02]} 22. Nde4 {[%emt 0:04:47]} ({Weaker is} 22. Nxc4 Rxb7 23. Rd8+ Bf8 $11) 22... Be7 {[%emt 0:06:53]} 23. Bc6 {[%emt 0:04:06]} Rxb2 {[%emt 0:00:53]} 24. Rb1 {[%emt 0:08:01]} Rxb1+ {[%emt 0:01:21]} 25. Nxb1 {[%emt 0:00:04]} Nxe4 {[%emt 0:00:07]} 26. Bxe4 {[%emt 0:00:03]} Bb4 {[%emt 0:00:53]} 27. e3 {[%emt 0:00:33]} Na6 {[%emt 0:03:50]} 28. Kf1 {[%emt 0:03:44]} Nc5 {[%emt 0:00:05]} 29. Bc2 {[%emt 0:00:01]} Kf8 {[%emt 0:02:25]} 30. Ke2 {[%emt 0:00:27]} ({Inferior is} 30. Bxh7 g6 31. Ke2 Kg7 $17) 30... c3 {[%emt 0:00:01]} 31. e4 {[%emt 0:01:45]} Ke7 {[%emt 0:02:35]} 32. Ke3 {[%emt 0:00:06]} Nd7 {[%emt 0:00:38]} (32... g5 $16 {is a better defense.} 33. f3 Nd7) 33. f4 {[%emt 0:01:14]} Bc5+ {[%emt 0:01:31]} 34. Kd3 {[%emt 0:01:20]} Bg1 {[%emt 0:00:04]} 35. Nxc3 {[%emt 0:00:02]} Kd6 {[%emt 0:00:12]} 36. Ne2 {[%emt 0:00:41]} Bf2 {[%emt 0:00:24]} 37. e5+ {[%emt 0:02:38]} Kc7 {[%emt 0:00:28]} 38. Ke4 {[%emt 0:02:34]} g6 {[%emt 0:00:40]} 39. Bb3 {[%emt 0:00:20]} f6 {[%emt 0:01:01]} 40. Bg8 {[%emt 0:02:27]} ({Don't take} 40. e6 Nc5+ 41. Kd5 Na6) 40... fxe5 {[%emt 0:00:33]} 41. fxe5 {[%emt 0:00:13]} Nf8 {[%emt 0:00:15]} 42. Nf4 {[%emt 0:01:05]} Kd7 {[%emt 0:00:19]} 43. g4 {[%emt 0:02:23]} h6 {[%emt 0:00:22]} 44. Bd5 {[%emt 0:03:18]} Ke7 {[%emt 0:00:24]} 45. a4 {[%emt 0:00:45]} Bb6 {[%emt 0:00:08]} 46. Bc4 {[%emt 0:01:21]} Ba5 {[%emt 0:00:10]} 47. Nd5+ {[%emt 0:01:23]} Kd8 {[%emt 0:00:53]} 48. Ne3 {[%emt 0:01:16]} Nd7 {[%emt 0:00:20]} 49. Bb5 {[%emt 0:00:50]} Nb6 {[%emt 0:00:30]} 50. h4 {[%emt 0:00:35]} Ke7 {[%emt 0:01:02]} 51. h5 {[%emt 0:00:12]} Kf7 {[%emt 0:00:06]} 52. Bc4+ {[%emt 0:03:01]} (52. Nc4 $142) 52... Kg7 {[%emt 0:00:04]} 53. Bb3 {[%emt 0:00:13]} Bc3 {[%emt 0:00:34]} 54. hxg6 {[%emt 0:01:01]} Kxg6 {[%emt 0:00:02]} 55. Nf5 {[%emt 0:00:10]} Nd7 {[%emt 0:00:55]} 56. e6 {[%emt 0:01:15]} Nc5+ {[%emt 0:02:11]} 57. Kd5 Nxb3 {[%emt 0:00:04]} 58. Kc4 {[%emt 0:01:16]} h5 {[%emt 0:00:33]} 59. e7 {[%emt 0:00:30]} Kf7 {[%emt 0:00:50]} 60. gxh5 {[%emt 0:00:24]} Nd2+ {[%emt 0:00:27]} 61. Kxc3 {[%emt 0:00:08]} Ne4+ {[%emt 0:00:03]} 62. Kd4 {[%emt 0:00:11]} Nf6 {[%emt 0:00:03]} 63. h6 {[%emt 0:01:04]} Kg6 {[%emt 0:00:03]} 64. Nd6 {[%emt 0:00:06]} 1-0

[Event "FRA-ch Youth 2017"]
[Site "Belfort"]
[Date "2017.04.23"]
[Round "9"]
[White "Dillenschneider, Ernesto"]
[Black "Lever, Erwan"]
[Result "1/2-1/2"]
[ECO "D85"]
[WhiteElo "2037"]
[BlackElo "2129"]
[Annotator "NA RC"]
[PlyCount "64"]
[EventDate "2017.??.??"]
[EventCountry "FRA"]
[SourceTitle "playchess.com"]
[Source "ChessBase"]
[SourceQuality "1"]
[TimeControl "5400+30"]

{[%evp 8,64,36,35,35,33,46,37,25,9,29,23,32767,32767,73,32767,32767,32767,94,23,31,14,83,25,35,14,8,32767,32767,32767,37,21,18,22,10,23,23,0,0,0,0,0,0,2,14,11,32767,0,16,0,10,14,39,34,32,35,32,34,45]} 1. d4 {[%emt 0:11:58]} Nf6 {[%emt 0:00:04]} 2. c4 {[%emt 0:00:48]} g6 {[%emt 0:00:05]} 3. Nc3 {[%emt 0:00:32]} d5 {[%emt 0:00:04]} 4. cxd5 {[%emt 0:00:41]} Nxd5 {[%emt 0:00:05]} 5. e4 {[%emt 0:00:17]} Nxc3 {[%emt 0:00:05]} 6. bxc3 {[%emt 0:00:04]} Bg7 {[%emt 0:00:05]} 7. Be3 {[%emt 0:01:06]} c5 {[%emt 0:00:05]} 8. Nf3 {[%emt 0:01:03]} Qa5 {[%emt 0:00:06]} 9. Qd2 {[%emt 0:01:27] LiveBook: 962 Games} a6 $146 {[%emt 0:10:56] D85: Exchange Grünfeld: Unusual White 7th moves and lines with 7 Nf3} (9... O-O 10. Rc1 Nd7 11. Bd3 b6 12. O-O e6 13. Qe2 Bb7 14. Nd2 Qxa2 15. Ra1 Qb2 16. Rfb1 Qxc3 17. Nc4 Nf6 18. Ra3 Nxe4 19. Bxe4 Bxe4 20. Rxc3 Bxb1 {1-0 (65) Onischuk,A (2667)-Robson,R (2668) Saint Louis 2017}) 10. Rc1 {[%emt 0:06:20]} cxd4 {[%emt 0:00:34]} 11. cxd4 {[%emt 0:00:15]} Qxd2+ {[%emt 0:00:05]} 12. Nxd2 {[%emt 0:00:54]} O-O {[%emt 0:03:04]} 13. Be2 {[%emt 0:04:57]} Nc6 {[%emt 0:11:14]} 14. Nb3 {[%emt 0:05:02]} e5 {[%emt 0:05:37]} (14... a5 $11 {remains equal.}) 15. dxe5 {[%emt 0:16:16]} Bxe5 {[%emt 0:01:20]} 16. a4 {[%emt 0:01:38]} Re8 {[%emt 0:08:47]} 17. O-O {[%emt 0:04:03]} Bg7 {[%emt 0:13:48]} 18. f3 {[%emt 0:08:09]} f5 {[%emt 0:05:43]} 19. Bd3 {[%emt 0:03:36]} fxe4 {[%emt 0:09:50]} 20. Bxe4 {[%emt 0:00:53]} Bf5 {[%emt 0:00:07]} 21. Nc5 {[%emt 0:05:03]} Nd4 {[%emt 0:02:18]} 22. Rfe1 {[%emt 0:03:38]} Bxe4 {[%emt 0:05:38]} 23. Nxe4 {[%emt 0:00:16]} Rac8 {[%emt 0:02:23]} 24. Bxd4 {[%emt 0:07:14]} Bxd4+ {[%emt 0:00:01]} 25. Kf1 {[%emt 0:00:07]} Rxc1 {[%emt 0:02:25]} 26. Rxc1 {[%emt 0:00:06]} Re7 {[%emt 0:00:17]} 27. Ke2 {[%emt 0:01:50]} h5 {[%emt 0:02:38]} 28. Rc4 {[%emt 0:01:26]} Be5 {[%emt 0:00:43]} 29. g3 {[%emt 0:02:13]} h4 {[%emt 0:02:07]} 30. f4 {[%emt 0:01:18]} Bc7 {[%emt 0:02:35]} 31. Kf3 {[%emt 0:00:42]} hxg3 {[%emt 0:00:15]} 32. hxg3 {[%emt 0:00:06]} Ba5 $14 {[%emt 0:01:59]} 1/2-1/2

[Event "FRA-ch Youth 2017"]
[Site "Belfort"]
[Date "2017.04.23"]
[Round "9"]
[White "Leriche, Ines"]
[Black "Bellahcene, Anissa"]
[Result "1-0"]
[ECO "D35"]
[WhiteElo "2037"]
[BlackElo "1806"]
[Annotator "NA RC"]
[PlyCount "57"]
[EventDate "2017.??.??"]
[EventCountry "FRA"]
[SourceTitle "playchess.com"]
[Source "ChessBase"]
[SourceQuality "1"]
[TimeControl "5400+30"]

{[%evp 8,57,15,14,31,26,38,33,20,32767,31,16,31,15,38,38,43,49,32767,25,35,12,58,54,71,0,32767,-7,32767,56,32767,58,91,73,32767,80,32767,4,25,13,440,447,514,32767,32767,631,636,32767,695,705,32767,711]} 1. d4 {[%emt 0:00:00]} d5 {[%emt 0:00:11]} 2. c4 {[%emt 0:00:00]} e6 {[%emt 0:00:13]} 3. Nc3 {[%emt 0:00:00]} Nf6 {[%emt 0:00:55]} 4. cxd5 {[%emt 0:00:08]} exd5 {[%emt 0:00:09]} 5. Bg5 {[%emt 0:00:26]} Nbd7 {[%emt 0:01:06]} 6. e3 {[%emt 0:00:36]} c6 {[%emt 0:00:12]} 7. Bd3 {[%emt 0:00:19]} Be7 {[%emt 0:00:40]} 8. h3 {[%emt 0:09:03]} O-O {[%emt 0:03:55]} 9. Nf3 {[%emt 0:00:16]} Re8 {[%emt 0:02:45]} 10. O-O {[%emt 0:00:30]} h6 {[%emt 0:00:45] D35: Queen's Gambit Declined: Exchange Variation} (10... Nf8 11. Bf4 Bd6 12. Bxd6 Qxd6 13. Ne5 N6d7 14. Nxd7 Bxd7 15. Rb1 a5 16. Na4 Be6 17. Qc2 Rad8 18. a3 {0-1 (44) Belov,V (2608)-Dorfman,J (2595) playchess.com INT 2006}) 11. Bf4 {[%emt 0:01:14] LiveBook: 5 Games} Nb6 {[%emt 0:01:20]} 12. Qc2 {[%emt 0:13:47]} Be6 {[%emt 0:02:42]} 13. Bh2 {[%emt 0:18:53]} Rc8 {[%emt 0:06:05]} 14. Ne5 {[%emt 0:01:31]} Nfd7 $146 {[%emt 0:08:52]} (14... c5 15. dxc5 Bxc5 16. Rac1 Qe7 17. Rfd1 Red8 18. Nf3 a6 19. Be5 Nc4 20. Bd4 b5 21. Qe2 Rc7 {½-½ (21) Kibalnichenko,S-Andrijevsky Podolsk 1993}) 15. f4 {[%emt 0:02:37]} Nxe5 {[%emt 0:05:33]} 16. fxe5 {[%emt 0:08:16]} (16. dxe5 $16 Bh4 17. Rad1) 16... c5 {[%emt 0:07:18]} 17. Qf2 {[%emt 0:08:12]} Bg5 {[%emt 0:09:48]} 18. Ne2 {[%emt 0:01:35]} Nc4 {[%emt 0:04:00]} 19. Nf4 {[%emt 0:00:40]} Qe7 {[%emt 0:06:21]} 20. b3 {[%emt 0:03:05]} Nb6 {[%emt 0:01:41]} 21. Bg3 {[%emt 0:01:40]} Qd7 {[%emt 0:08:13]} 22. h4 $2 {[%emt 0:06:08]} (22. Nxe6 $18 Rxe6 23. Bf5) 22... Bxf4 $1 {[%emt 0:00:13]} 23. exf4 {[%emt 0:04:39]} cxd4 $2 {[%emt 0:02:11]} (23... c4 $11 {and Black is okay.}) 24. f5 {[%emt 0:00:30]} ({Weaker is} 24. Qxd4 Bf5 $14) 24... Rc3 {[%emt 0:00:30]} 25. fxe6 {[%emt 0:00:30]} fxe6 {[%emt 0:00:30]} 26. Qxd4 {[%emt 0:00:30]} Rec8 {[%emt 0:00:30]} 27. Rad1 {[%emt 0:00:30]} Qe7 {[%emt 0:00:30]} 28. Qg4 {[%emt 0:00:30]} Rf8 {[%emt 0:00:30]} 29. Qg6 $18 {[%emt 0:00:30]} 1-0

[Event "FRA-ch Youth 2017"]
[Site "Belfort"]
[Date "2017.04.23"]
[Round "9"]
[White "Popov, Konstantin"]
[Black "Candelot, Clement"]
[Result "1/2-1/2"]
[ECO "C78"]
[WhiteElo "2026"]
[BlackElo "1839"]
[Annotator "NA RC"]
[PlyCount "176"]
[EventDate "2017.??.??"]
[EventCountry "FRA"]
[SourceTitle "playchess.com"]
[Source "ChessBase"]
[SourceQuality "1"]
[TimeControl "5400+30"]

{[%evp 9,176,25,35,32,51,8,34,32767,32767,32767,32767,32767,16,1,-1,-2,9,8,25,20,113,32767,32767,32767,158,169,147,151,159,147,162,77,56,32767,151,32767,32767,32767,32767,31,32767,32767,16,32767,32767,10,17,4,32767,0,33,19,13,0,20,0,3,0,0,-7,32767,-13,-9,-11,0,32767,32,21,79,91,77,86,81,77,32767,32767,32767,32767,32767,32767,32767,87,89,77,81,83,83,32767,86,79,91,83,91,32767,42,0,41,34,32767,32767,32767,32767,39,32767,31,42,32767,32767,32767,0,0,32767,32767,32767,32767,32767,0,32767,32767,32767,251,32767,216,204,32767,32767,32767,32767,249,204,32767,254,469,543,366,522,477,548,549,556,1408,32767,1395,404,371,82,32767,32767,0,0,0,0,0,0,32767,0,0,32767,32767,32767,0,0,0,0,-5,0,0,0,-4]} 1. e4 {[%emt 0:00:33]} e5 {[%emt 0:00:04]} 2. Nf3 {[%emt 0:00:28]} Nc6 {[%emt 0:01:25]} 3. Bb5 {[%emt 0:01:15]} a6 {[%emt 0:00:32]} 4. Ba4 {[%emt 0:00:50]} Nf6 {[%emt 0:00:38]} 5. O-O {[%emt 0:00:43]} b5 {[%emt 0:00:36]} 6. Bb3 {[%emt 0:00:13]} Bc5 {[%emt 0:01:21]} 7. d3 {[%emt 0:03:19]} h6 {[%emt 0:01:38]} 8. a4 {[%emt 0:00:18] C78: Ruy Lopez: Archangelsk and Möller Defences} Rb8 {[%emt 0:01:55]} 9. axb5 {[%emt 0:00:18]} axb5 {[%emt 0:00:17]} 10. c3 {[%emt 0:00:18]} d6 {[%emt 0:01:19]} 11. Nbd2 {[%emt 0:04:00]} O-O {[%emt 0:01:16]} 12. h3 {[%emt 0:00:30] LiveBook: 4 Games} Re8 {[%emt 0:01:17]} 13. Re1 {[%emt 0:00:39]} Bb7 $146 {[%emt 0:01:09]} (13... Bb6 14. Nf1 Ne7 15. Nh4 Be6 16. Be3 Qd7 17. Bxe6 Qxe6 18. Bxb6 Rxb6 {½-½ (31) Zhao,J (2634)-Xu,J (2527) Xinghua 2016}) 14. Nf1 {[%emt 0:00:31]} d5 {[%emt 0:01:31]} (14... Bc8 $11) 15. exd5 {[%emt 0:00:36]} Nxd5 {[%emt 0:00:27]} 16. d4 {[%emt 0:00:06]} Bb6 {[%emt 0:05:41]} 17. dxe5 {[%emt 0:12:25]} Na5 {[%emt 0:04:22]} 18. Bc2 {[%emt 0:00:48]} Ne7 {[%emt 0:02:26] [#]} 19. Nd4 $1 {[%emt 0:10:54]} Bxd4 {[%emt 0:10:26]} 20. Rxa5 {[%emt 0:05:16]} (20. cxd4 $18 Nac6 21. Qd3) 20... Qd5 {[%emt 0:07:22]} 21. Qg4 {[%emt 0:08:48]} h5 {[%emt 0:13:02]} (21... Bb6 $14 22. Ra1 h5) 22. Qe4 {[%emt 0:00:47]} Qxe4 {[%emt 0:00:59]} 23. Bxe4 {[%emt 0:00:10]} Bxe4 {[%emt 0:02:01]} 24. Rxe4 {[%emt 0:00:08]} Bb6 {[%emt 0:00:05]} 25. Ra1 {[%emt 0:04:05]} Ng6 {[%emt 0:00:34]} 26. e6 {[%emt 0:03:44]} Rxe6 {[%emt 0:00:19]} 27. Rxe6 {[%emt 0:00:16]} fxe6 {[%emt 0:00:04]} 28. Be3 {[%emt 0:00:04]} Bxe3 {[%emt 0:00:36]} 29. Nxe3 {[%emt 0:00:08]} Rb7 {[%emt 0:00:42]} 30. Nc2 {[%emt 0:01:58]} Nf4 {[%emt 0:01:07]} 31. Nd4 {[%emt 0:00:45]} c5 {[%emt 0:01:37]} 32. Ra8+ {[%emt 0:07:45]} Kh7 {[%emt 0:02:01]} 33. Nf3 {[%emt 0:00:17]} Kg6 {[%emt 0:00:59]} 34. Rc8 {[%emt 0:00:47]} Nd3 {[%emt 0:01:45]} 35. Rc6 {[%emt 0:01:01]} Kf6 {[%emt 0:00:53]} 36. h4 {[%emt 0:00:23]} b4 {[%emt 0:01:50]} 37. Ng5 {[%emt 0:06:14]} Nxb2 {[%emt 0:03:06]} 38. Nxe6 {[%emt 0:00:13]} Ke5 {[%emt 0:01:08]} (38... c4 $1 $11 39. Nd8+ Ke5 40. Rc5+ (40. Nxb7 bxc3 41. Nd6 Kd5 $11) 40... Kf6 41. Rc6+ (41. Nxb7 bxc3 42. Ra5 c2 $16) 41... Ke5 42. Rc5+ Kf6 43. Rc6+) 39. Nxc5 {[%emt 0:00:33]} Rb5 {[%emt 0:00:38]} 40. cxb4 {[%emt 0:00:24]} Rxb4 {[%emt 0:00:30]} 41. Nd7+ {[%emt 0:02:15]} Kf5 {[%emt 0:02:42]} 42. Rc5+ {[%emt 0:00:28]} Ke6 {[%emt 0:01:12]} 43. Nf8+ {[%emt 0:00:34]} Ke7 {[%emt 0:01:00]} 44. Rf5 {[%emt 0:00:10]} Rb6 {[%emt 0:00:53]} 45. Nh7 {[%emt 0:00:57]} g6 {[%emt 0:00:15]} 46. Rc5 {[%emt 0:00:47]} Nd3 {[%emt 0:01:01]} 47. Rc7+ {[%emt 0:00:43]} Ke6 {[%emt 0:00:19]} 48. Ng5+ {[%emt 0:03:10]} Kf5 {[%emt 0:01:02]} 49. g3 {[%emt 0:01:12]} Rb2 {[%emt 0:01:44]} 50. Rf7+ {[%emt 0:02:38]} Ke5 {[%emt 0:00:59]} 51. f4+ {[%emt 0:04:47]} Kd4 {[%emt 0:00:19]} 52. Rd7+ {[%emt 0:01:33]} (52. Re7) 52... Ke3 $1 {[%emt 0:00:25]} 53. Re7+ {[%emt 0:00:08]} Kd4 {[%emt 0:01:19]} 54. Nf3+ {[%emt 0:00:08]} Kd5 {[%emt 0:00:17]} 55. Ne5 {[%emt 0:05:21]} Rb1+ {[%emt 0:00:13]} 56. Kg2 {[%emt 0:00:08]} Rb2+ {[%emt 0:00:17]} 57. Kf1 {[%emt 0:00:14]} Nc5 {[%emt 0:04:00]} 58. Nxg6 {[%emt 0:02:29]} Ne4 {[%emt 0:00:07]} 59. Rd7+ {[%emt 0:00:06]} Ke6 $1 {[%emt 0:01:14]} 60. Rd3 {[%emt 0:00:43]} Kf5 {[%emt 0:00:24]} 61. Ne5 {[%emt 0:00:27]} Rb1+ {[%emt 0:00:50]} 62. Kg2 {[%emt 0:00:38]} Rb2+ {[%emt 0:00:05]} 63. Kf3 {[%emt 0:01:43]} Rh2 {[%emt 0:00:41]} 64. Nf7 {[%emt 0:02:36]} Nf6 $2 {[%emt 0:02:48]} ({Better is} 64... Nd2+ $14 65. Ke3 Nf1+ 66. Kd4 Nxg3) 65. Nh6+ {[%emt 0:00:27]} Kg6 {[%emt 0:00:24]} 66. Rd6 {[%emt 0:00:08]} Kg7 {[%emt 0:00:35]} 67. Nf5+ {[%emt 0:00:51]} Kg6 {[%emt 0:00:13]} 68. Ne3 {[%emt 0:00:06]} Kf7 {[%emt 0:00:35]} 69. Rc6 {[%emt 0:01:37]} Ra2 {[%emt 0:00:14]} 70. Rc7+ {[%emt 0:00:58]} Ke6 $2 {[%emt 0:00:32]} (70... Ke8 {was worth a try.} 71. Nc4 Kf8 72. Rc8+ Kg7) 71. f5+ {[%emt 0:00:16]} Kd6 {[%emt 0:00:07]} 72. Rf7 {[%emt 0:00:25]} Ke5 {[%emt 0:01:08]} 73. Re7+ {[%emt 0:00:17]} Kd4 {[%emt 0:00:20]} 74. Re6 {[%emt 0:00:07]} Ra3 {[%emt 0:02:49]} 75. Rxf6 {[%emt 0:00:22]} Rxe3+ {[%emt 0:00:05]} 76. Kg2 {[%emt 0:00:35]} (76. Kf4 $142 {Hoping for Rd6+.} Re4+ 77. Kg5 Rg4+ 78. Kxh5 Rxg3 79. Rg6) 76... Re5 {[%emt 0:00:13]} (76... Re2+ $142 77. Kf3 Ra2) 77. Kh3 $2 {[%emt 0:00:11]} (77. Rf8 $18 {is more deadly. Black must now prevent f6.} Ke4 78. f6) 77... Ke4 {[%emt 0:00:18]} 78. g4 {[%emt 0:00:13]} Kf3 $1 {[%emt 0:00:35]} 79. gxh5 {[%emt 0:00:46]} Re1 {[%emt 0:00:09]} 80. Kh2 {[%emt 0:00:10]} Re4 {[%emt 0:00:08]} 81. Rh6 {[%emt 0:05:17]} Rxh4+ {[%emt 0:00:26]} 82. Kg1 {[%emt 0:00:03]} Rf4 {[%emt 0:00:20]} 83. Rh8 {[%emt 0:01:43]} Rxf5 {[%emt 0:00:19]} 84. h6 {[%emt 0:00:05]} Rf7 {[%emt 0:01:00]} 85. h7 {[%emt 0:00:39]} Kf4 {[%emt 0:00:25]} 86. Kg2 {[%emt 0:00:39]} Kf5 $1 {[%emt 0:00:08]} 87. Kg3 {[%emt 0:00:30]} Kf6 {[%emt 0:00:06]} 88. Kg4 {[%emt 0:00:35]} Kg7 $11 {[%emt 0:00:14]} 1/2-1/2